[Event "FIDE Candidates 2026"]
[White "Esipenko,Andrey"]
[Black "Giri,Anish"]
[Site "Agios Georgios Pegeia"]
[Round "4.3"]
[Annotator "TA"]
[Result "0-1"]
[Date "2026.04.01"]
[WhiteElo "2698"]
[BlackElo "2753"]
[PlyCount "68"]
[TimeControl "60"]

{[%evp 13,67,0,0,-9,-12,-8,-15,-10,16,2,17,2,6,0,0,0,8,-3,0,0,28,51,67,-76,-73,-76,-64,-135,-143,-243,-249,-235,-245,-236,-228,-245,-245,-240,-265,-519,-530,-631,-488,-907,-880,-861,-402,-379,-287,-446,-447,-857,-879,-881,-875,-887]} 1. e4 {[%emt 0:0:8]} c5 {[%emt 0:0:5]} 2. Nf3 {[%emt 0:0:6]} d6 {[%emt 0:0:4]} 3. d4 {[%emt 0:0:7]} cxd4 {[%emt 0:0:4]} 4. Nxd4 {[%emt 0:0:5]} Nf6 {[%emt 0:0:4]} 5. Nc3 {[%emt 0:0:9]} a6 {[%emt 0:0:4]} 6. Bg5 {[%emt 0:0:7]} e6 {[%emt 0:0:13]} 7. Bd3 {[%emt 0:0:11]} Be7 {[%emt 0:0:23]} 8. Qe2 {[%emt 0:0:9] B95: Sicilian Najdorf: 6 Bg5 e6, unusual White 7th moves.} Nxe4 {[%emt 0:1:47]} 9. Nxe4 {[%emt 0:0:10]} Bxg5 {[%emt 0:0:3]} 10. Nf5 {[%emt 0:0:10] The position is equal.} Be7 {[%emt 0:1:44]} 11. Nxg7+ {[%emt 0:0:15]} Kd7 $146 {[%emt 0:0:4]} ({Predecessor:} 11... Kf8 12. Nh5 d5 13. Neg3 Nc6 14. O-O Bd7 15. c4 d4 16. a3 a5 17. Rad1 Qc7 {½-½ Orgovan,S (2240)-Stempin,P (2255) Bydgoszcz U20 1980} )12. O-O {[%emt 0:3:9]} Nc6 {[%emt 0:5:8]} 13. c4 {[%emt 0:2:2]} Kc7 {[%emt 0:3:49] A sharp opening} 14. Nh5 {[%emt 0:10:34]} Bd7 {[%emt 0:20:16]} 15. Rfd1 {[%emt 0:0:51]} Rc8 {[%emt 0:8:35]} 16. b4 $1 {[%emt 0:0:46]} Nxb4 {[%emt 0:13:57]} 17. Rab1 {[%emt 0:13:11]} Nxd3 {[%emt 0:8:21]} 18. Qxd3 {[%emt 0:4:48]} (18. Rxd3 $14 {keeps the upper hand.} Bc6 19. Rbd1 )Ba4 $17 {[%emt 0:20:0] Black converts the advantage convincingly.} 19. Rd2 {[%emt 0:40:34] [#] And now Qd4 would win.} Kb8 {[%emt 0:0:42]} 20. Rdb2 {[%emt 0:13:46]} (20. Qd4 $15 Bc6 21. Nxd6 )Bc6 {[%emt 0:2:49]} 21. c5 {[%emt 0:7:1]} (21. Nf4 $17 )dxc5 $19 {[%emt 0:1:15]} 22. Qxa6 {[%emt 0:0:45][%cal Rb2b7] White wants to mate with Rxb7+.} Qd5 {[%emt 0:4:30]} 23. f3 {[%emt 0:6:15]} Rc7 {[%emt 0:3:51]} 24. Nhg3 {[%emt 0:5:13]} Rd8 {[%emt 0:0:27]} 25. Nf2 {[%emt 0:0:26]} c4 {[%emt 0:0:33]} 26. Nge4 {[%emt 0:0:21] [#]} (26. Rc2 )f5 {[%emt 0:3:33]} 27. Nc3 {[%emt 0:3:37]} Qc5 {[%emt 0:2:26]} 28. Re2 {[%emt 0:0:59]} (28. Qb6 $142 )Bf6 {[%emt 0:3:13] A strong pair of Bishops.} 29. Na4 {[%emt 0:0:37]} Bxa4 {[%emt 0:0:37]} (29... Qa3 $142 {...Rg8 is the strong threat.} 30. Qxc4 Bxf3 31. Qxe6 Bxe2 )30. Qxa4 {[%emt 0:0:1] White is weak on the dark squares} c3 {[%emt 0:0:25]} 31. Qc2 {[%emt 0:0:28]} (31. g3 {was called for.} )Bg5 {[%emt 0:0:44] Black is clearly winning.} 32. Kf1 {[%emt 0:0:37]} (32. g3 $142 )Qc4 {[%emt 0:0:22]} 33. Rd1 {[%emt 0:2:4]} Rd2 {[%emt 0:0:42]} 34. Rdxd2 {[%emt 0:0:6]} cxd2 {[%emt 0:0:10] Weighted Error Value: White=0.85/Black=0.41   Mistake:       	White=7     	---        Inaccurate:     	---       	Black=2      OK:         	White=3     	Black=1      Strong:       	White=1     	Black=1} 0-1

[Event "FIDE Candidates 2026"]
[White "Wei,Yi"]
[Black "Nakamura,Hikaru"]
[Site "Agios Georgios Pegeia"]
[Round "4.4"]
[Annotator "TA"]
[Result "1/2-1/2"]
[Date "2026.04.01"]
[WhiteElo "2754"]
[BlackElo "2810"]
[PlyCount "123"]
[TimeControl "60"]

{[%evp 11,123,4,41,29,37,29,37,24,38,0,42,22,21,11,20,14,17,0,0,21,62,29,35,16,17,0,0,0,0,0,0,16,7,0,0,0,0,0,0,0,0,0,17,-20,-16,-22,-6,-25,-18,-18,-18,-18,-18,-18,-18,-26,-18,-18,-18,-18,-18,-18,-18,-18,-18,-18,-18,-81,-77,-153,-141,-150,-103,-143,-147,-136,-103,-168,-136,-144,-106,-106,-106,-120,-113,-117,-62,-62,-62,-62,-53,-53,-53,-106,-83,-83,-84,-88,-22,-59,0,-88,-29,-36,-10,-10,0,0,0,0,0,0,0,0]} 1. e4 {[%emt 0:0:4]} c5 {[%emt 0:0:10]} 2. Nf3 {[%emt 0:0:11]} d6 {[%emt 0:0:5]} 3. Nc3 {[%emt 0:1:48]} Nf6 {[%emt 0:0:44]} 4. Bc4 {[%emt 0:4:25]} a6 {[%emt 0:15:22]} 5. d4 {[%emt 0:0:21]} cxd4 {[%emt 0:13:47]} 6. Nxd4 {[%emt 0:0:17]} g6 {[%emt 0:0:7]} 7. f3 {[%emt 0:14:39] B90: Sicilian Najdorf: Unusual White 6th moves, 6 Be3 Ng4 and 6 Be3 e5.} b5 {[%emt 0:8:26]} 8. Bb3 {[%emt 0:1:8]} Bb7 {[%emt 0:0:51]} 9. Be3 {[%emt 0:34:43] White is slightly better.} Nbd7 {[%emt 0:1:30]} 10. a4 {[%emt 0:1:51]} bxa4 {[%emt 0:8:15]} 11. Bxa4 {[%emt 0:2:13]} Bg7 {[%emt 0:0:44]} 12. Nc6 $146 {[%emt 0:7:7]} ({Predecessor:} 12. O-O O-O 13. Qe2 Rc8 14. Rfd1 Qc7 15. Qf2 Ne5 16. Bb3 Nc4 17. Bxc4 Qxc4 18. Nb3 {½-½ Gerlach,F (1956)-Schimnatkowski,L (1970) Ruhrgebiet Verbandsklasse Gruppe 3 1617 2016 (7.1)} )Qc7 {[%emt 0:2:43]} 13. Na5 {[%emt 0:6:26]} O-O {[%emt 0:0:31]} 14. Bxd7 {[%emt 0:1:25]} Nxd7 {[%emt 0:11:51]} 15. Bd4 {[%emt 0:0:15]} Bh6 {[%emt 0:0:3]} 16. O-O {[%emt 0:1:11]} e6 {[%emt 0:0:28]} 17. Qe1 {[%emt 0:4:12]} Rab8 {[%emt 0:7:4]} 18. Qh4 {[%emt 0:10:49]} Bg7 {[%emt 0:2:50]} 19. Bxg7 {[%emt 0:1:30]} Kxg7 {[%emt 0:0:20]} 20. Qf2 {[%emt 0:0:30]} Bc8 {[%emt 0:1:8]} 21. Nd1 {[%emt 0:5:50]} Nf6 {[%emt 0:2:12][%cal Bd7f6,Bf6g8,Bg8e7][%mdl 32]} 22. c4 {[%emt 0:8:5]} d5 {[%emt 0:4:37]} 23. cxd5 {[%emt 0:1:32]} exd5 {[%emt 0:1:3]} 24. e5 {[%emt 0:0:11]} Ng8 {[%emt 0:0:35]} 25. Nc3 {[%emt 0:3:38] Dodges Rb5} Ne7 {[%emt 0:6:11]} 26. Rfc1 {[%emt 0:0:11]} Qd8 {[%emt 0:0:1]} 27. Rd1 {[%emt 0:2:4][%cal Oc3d5] [#] Hoping for Nxd5!.} Be6 {[%emt 0:4:8]} 28. Nc4 {[%emt 0:0:2]} Nf5 {[%emt 0:0:6]} 29. Nd6 {[%emt 0:0:20]} (29. Rxa6 $2 Qc8 30. Rxe6 fxe6 $19 )Nxd6 {[%emt 0:0:44]} 30. exd6 {[%emt 0:0:2]} Qxd6 {[%emt 0:0:17]} 31. Qd4+ {[%emt 0:0:1]} Kg8 {[%emt 0:0:22]} 32. Nxd5 {[%emt 0:0:41]} Bxd5 {[%emt 0:0:54]} 33. Qxd5 {[%emt 0:0:5]} Qb6+ {[%emt 0:6:51]} 34. Qd4 {[%emt 0:0:2]} Qxd4+ {[%emt 0:0:5]} (34... Qxb2 {is more complex.} 35. Rxa6 Qe2 36. Qd3 Rfe8 )35. Rxd4 {[%emt 0:0:1]} Rxb2 {[%emt 0:0:5]} 36. Rxa6 $11 {[%emt 0:0:4][%mdl 4096] Endgame KRR-KRR} Rc8 {[%emt 0:0:1] [#] ( -> ...Rc1+)} 37. h4 {[%emt 0:0:37]} Rcc2 {[%emt 0:0:37]} 38. Rg4 {[%emt 0:0:6]} h5 {[%emt 0:0:10]} 39. Rg5 {[%emt 0:0:43]} (39. Rg3 $1 $11 )Rc4 $17 {[%emt 0:0:36]} 40. Kh2 {[%emt 0:0:0]} (40. Raa5 $142 )Rxh4+ {[%emt 0:0:0]} 41. Kg1 {[%emt 0:9:55]} Rb1+ {[%emt 0:19:9]} 42. Kf2 {[%emt 0:0:3]} Rhh1 {[%emt 0:0:3]} 43. Ra2 {[%emt 0:11:6] Wards off Rb2+} Kg7 {[%emt 0:2:46]} 44. Re5 {[%emt 0:5:2]} (44. Rd5 $17 )Kh6 {[%emt 0:0:46]} 45. Ree2 {[%emt 0:3:11]} Rhf1+ {[%emt 0:6:32]} 46. Kg3 {[%emt 0:0:8]} Kg5 {[%emt 0:0:37]} 47. Ra4 {[%emt 0:3:33]} Rh1 {[%emt 0:1:8]} 48. Ree4 {[%emt 0:0:35]} Rb2 {[%emt 0:0:51]} (48... Rbg1 $17 49. f4+ Kh6 )49. Rab4 $15 {[%emt 0:0:8]} Rxb4 {[%emt 0:13:38]} 50. Rxb4 {[%emt 0:0:4] KR-KR. Black is a pawn up.} h4+ {[%emt 0:0:4]} 51. Kf2 {[%emt 0:0:3]} f5 {[%emt 0:0:1]} 52. Ra4 {[%emt 0:0:14]} ({White should play} 52. f4+ $15 Kg4 53. Rb6 )Rb1 {[%emt 0:0:7]} 53. Rc4 {[%emt 0:0:14]} Ra1 {[%emt 0:3:12]} 54. Rb4 {[%emt 0:0:3]} Rd1 {[%emt 0:0:40]} ({Better is} 54... Kh5 $17 )55. Ra4 {[%emt 0:0:5]} Rb1 {[%emt 0:0:28]} 56. Rc4 $1 {[%emt 0:0:4]} Rb2+ {[%emt 0:0:24]} (56... Kh5 $17 )57. Kg1 $11 {[%emt 0:0:3]} h3 {[%emt 0:0:2]} 58. gxh3 {[%emt 0:0:3] The position is equal.} f4 {[%emt 0:0:2]} 59. h4+ {[%emt 0:0:3]} Kxh4 {[%emt 0:0:2]} 60. Rxf4+ {[%emt 0:0:3]} Kg3 {[%emt 0:0:4][%cal Rb2b1]} 61. Rg4+ {[%emt 0:0:7]} Kxf3 {[%emt 0:0:2]} 62. Rxg6 {[%emt 0:0:3] And White is the lucky defender.   Weighted Error Value: White=0.11 (very precise) /Black=0.11 (very precise)   Mistake:       	White=4     	Black=3      Inaccurate:     	White=4     	Black=3      OK:         	White=5     	Black=9      Best:        	White=2     	---        Strong:       	White=1     	---} 1/2-1/2

[Event "FIDE Candidates 2026"]
[White "Nakamura,Hikaru"]
[Black "Sindarov,Javokhir"]
[Site "Agios Georgios Pegeia"]
[Round "5.1"]
[Annotator "TA"]
[Result "0-1"]
[Date "2026.04.03"]
[WhiteElo "2810"]
[BlackElo "2745"]
[PlyCount "82"]
[TimeControl "60"]

{[%evp 16,81,19,0,0,-50,-39,-23,-14,-37,-16,-137,-142,-129,-137,-142,-147,-144,-137,-143,-135,-136,-143,-179,-173,-181,-199,-253,-245,-284,-234,-230,-236,-225,-232,-230,-156,-156,-160,-165,-156,-158,-161,-160,-160,-246,-246,-246,-239,-765,-760,-725,-667,-545,-449,-448,-422,-901,-901,-797,-686,-888,-879,-871,-855,-1316,-714,-1191]} 1. d4 {[%emt 0:0:6]} d5 {[%emt 0:0:8]} 2. c4 {[%emt 0:0:14]} e6 {[%emt 0:0:9]} 3. Nc3 {[%emt 0:0:27]} c6 {[%emt 0:1:51]} 4. e4 {[%emt 0:0:14]} dxe4 {[%emt 0:0:5]} 5. Nxe4 {[%emt 0:0:5]} Bb4+ {[%emt 0:0:21]} 6. Bd2 {[%emt 0:0:7][%cal Bc1d2,Bd2b4,Bb4d6][%mdl 32]} Qxd4 {[%emt 0:0:10]} 7. Bxb4 {[%emt 0:0:4]} Qxe4+ {[%emt 0:0:5]} 8. Be2 {[%emt 0:0:5]} Na6 {[%emt 0:0:33]} 9. Bd6 {[%emt 0:0:8] is more profitable than 9.Ba5 at the moment.} Qxg2 {[%emt 0:0:38] D31: Queen's Gambit Declined: Semi-Slav without ...Nf6 (+ Marshall Gambit and Noteboom) and Exchange Variation lines without ...Nf6.} 10. Bf3 {[%emt 0:0:4] White sacrificed a pawn A strong pair of Bishops.} (10. Qd2 $11 Nf6 (10... Qxh1 $2 11. O-O-O $18 )11. Bf3 )Qg5 $15 {[%emt 0:0:12]} 11. Ne2 {[%emt 0:0:8]} Ne7 {[%emt 0:1:19] Black has an edge.} 12. Ng3 {[%emt 0:0:50]} O-O {[%emt 0:1:42]} 13. h4 $146 {[%emt 1:7:44]} (13. Ne4 $11 {remains equal.} Qa5+ 14. b4 Nxb4 15. O-O (15. Bxe7 Nd5+ 16. Qd2 Qxd2+ 17. Nxd2 Nxe7 $19 ))({Predecessor:} 13. Ne4 Qa5+ 14. b4 Qd8 15. Rg1 f6 16. Qc2 e5 17. Rd1 Nf5 18. b5 Qa5+ 19. Qd2 Qxd2+ 20. Rxd2 Nxd6 21. Rxd6 cxb5 22. Nxf6+ {½-½ Venkatesan,K (2202)-Smeets,K (2322) EU-ch U16 Prague 2024 (6)} )Qa5+ $17 {[%emt 0:2:19]} 14. b4 {[%emt 0:0:3]} Nxb4 {[%emt 0:11:58]} 15. O-O {[%emt 0:4:8]} (15. Bxe7 $2 Nd5+ (15... Nxa2+ $2 {perishes.} 16. Kf1 $18 )16. Kf1 Nxe7 $19 )(15. Qd2 $2 Nc2+ 16. Ke2 Qxd2+ 17. Kxd2 Rd8 (17... Nxa1 18. Bxe7 Re8 19. Bc5 $15 )18. Kxc2 Rxd6 $19 )Re8 {[%emt 0:1:7]} 16. Qd2 {[%emt 0:2:51]} c5 {[%emt 0:2:6]} 17. Rad1 {[%emt 0:19:35] [#] Bxe7 is the strong threat.} Nf5 {[%emt 0:11:51]} 18. Nxf5 {[%emt 0:3:6]} exf5 {[%emt 0:0:6]} 19. Qf4 {[%emt 0:3:12]} Nc6 {[%emt 0:13:16][%cal Bb4c6,Bc6d4,Bd4e2][%mdl 32]} 20. Kh1 {[%emt 0:0:27]} Nd4 {[%emt 0:7:45]} 21. Rg1 {[%emt 0:0:4]} (21. Be5 $142 )g6 $19 {[%emt 0:6:36]} 22. Bd5 {[%emt 0:1:20][%cal Od5f7]} Be6 {[%emt 0:3:16]} 23. Bxb7 {[%emt 0:0:54]} Ne2 {[%emt 0:1:54]} 24. Qd2 {[%emt 0:2:20]} Qxd2 {[%emt 0:0:34]} 25. Rxd2 {[%emt 0:0:1]} Nxg1 {[%emt 0:0:7]} 26. Bxa8 {[%emt 0:0:3]} Rxa8 {[%emt 0:0:57]} 27. Kxg1 {[%emt 0:0:8][%mdl 4096] Endgame KRB-KRB. Black is two pawns up.} Rd8 {[%emt 0:0:36]} 28. Bf4 {[%emt 0:0:1]} Rxd2 {[%emt 0:0:8]} 29. Bxd2 {[%emt 0:0:6]} Bxc4 $17 {[%emt 0:0:6] KB-KB. Black is 3 pawns up.} 30. Be3 {[%emt 0:0:1]} (30. a3 $17 {might work better.} )Bxa2 $19 {[%emt 0:0:16]} 31. Bxc5 {[%emt 0:0:1]} a5 {[%emt 0:0:8]} 32. f4 $2 {[%emt 0:2:42] [#]} (32. Bd4 )f6 {[%emt 0:0:7] Black is clearly winning.} 33. Kf2 {[%emt 0:0:2]} Kf7 {[%emt 0:0:6]} 34. Ba3 {[%emt 0:0:18]} Ke6 {[%emt 0:0:40]} 35. Bf8 {[%emt 0:0:51]} a4 {[%emt 0:0:21]} 36. Ke3 {[%emt 0:0:2]} (36. Ke2 $142 )Kf7 {[%emt 0:0:5]} 37. Bb4 {[%emt 0:1:7]} h6 {[%emt 0:0:5]} 38. Kf2 {[%emt 0:0:11]} g5 {[%emt 0:0:27]} 39. Kg3 {[%emt 0:0:10]} Bd5 {[%emt 0:0:40]} 40. Ba3 {[%emt 0:0:0]} Be4 {[%emt 0:0:0]} 41. Bc1 {[%emt 0:0:43]} gxh4+ {[%emt 0:0:38] Weighted Error Value: White=0.48/Black=0.13 (very precise)   Mistake:       	White=6     	---        Inaccurate:     	---       	Black=1      OK:         	---       	Black=5      Best:        	---       	Black=1} 0-1

[Event "FIDE Candidates 2026"]
[White "Caruana,Fabiano"]
[Black "Bluebaum,Matthias"]
[Site "Agios Georgios Pegeia"]
[Round "5.2"]
[Annotator "TA"]
[Result "1-0"]
[Date "2026.04.03"]
[WhiteElo "2795"]
[BlackElo "2698"]
[PlyCount "55"]
[TimeControl "60"]

{[%evp 10,54,0,-14,-16,-16,-20,-26,-4,-34,0,2,23,0,28,0,0,19,27,42,43,45,53,36,74,70,55,58,197,183,336,189,204,201,235,223,571,565,756,759,719,649,29991,29992,29998,29999,29999]} 1. e4 {[%emt 0:0:3]} e5 {[%emt 0:0:8]} 2. Nf3 {[%emt 0:0:7]} Nf6 {[%emt 0:0:6]} 3. Nxe5 {[%emt 0:0:4]} d6 {[%emt 0:0:3]} 4. Nc4 {[%emt 0:0:10]} Nxe4 {[%emt 0:0:9]} 5. Nc3 {[%emt 0:0:5]} Nxc3 {[%emt 0:6:29]} 6. dxc3 {[%emt 0:0:19]} d5 {[%emt 0:2:7] C42: Petroff Defence: 3 Nxe5 and unusual White 3rd moves.} 7. Ne3 {[%emt 0:0:12]} c6 {[%emt 0:7:21]} 8. Bd2 $146 {[%emt 0:0:17]} ({Predecessor:} 8. Qd4 Nd7 9. c4 Qf6 10. Qxf6 Nxf6 11. cxd5 cxd5 12. Bd2 Bc5 13. O-O-O O-O 14. Bc3 Ne4 15. Bd4 Bxd4 16. Rxd4 Nxf2 17. Rg1 Re8 18. Rxd5 g6 {½-½ Mamedov,R (2689)-Kuzubov,Y (2637) Lvov rapid Cup 2017 (11)} )g6 {[%emt 0:4:40] Black has an edge.} 9. f4 {[%emt 0:0:15][%cal Bf2f4,Bf4f5][%mdl 32]} Bg7 {[%emt 0:2:47]} 10. Qf3 {[%emt 0:0:19]} Nd7 {[%emt 0:2:24][%cal Bb8d7,Bd7c5,Bc5e4][%mdl 32]} 11. O-O-O {[%emt 0:17:59]} Nc5 {[%emt 0:2:34]} 12. f5 {[%emt 0:23:33]} O-O {[%emt 0:18:44]} 13. g4 {[%emt 0:1:0]} Ne4 {[%emt 0:3:39]} 14. Bd3 {[%emt 0:4:35]} Re8 {[%emt 0:19:24]} 15. Bxe4 {[%emt 0:8:33]} Rxe4 {[%emt 0:0:7]} 16. h4 {[%emt 0:0:33][%cal Bh2h4,Bh4h5][%mdl 32]} Be5 {[%emt 0:12:34] [#]} 17. c4 $1 {[%emt 0:27:33]} Qb6 {[%emt 0:6:51][%csl Ge5][%cal Rb6b2]} 18. c3 $1 {[%emt 0:0:18][%cal Bc2c3,Bc3c4][%mdl 32]} Qa5 {[%emt 0:4:7] Loses the game.} ({Black should play} 18... Bd7 $14 )19. h5 $18 {[%emt 0:15:1]} g5 {[%emt 0:2:52]} (19... Rf4 20. Qg2 b6 21. hxg6 hxg6 )20. cxd5 {[%emt 0:7:32]} (20. Nxd5 $142 cxd5 21. Bxg5 )Rf4 {[%emt 0:4:12]} 21. Qe2 {[%emt 0:0:5]} cxd5 {[%emt 0:4:54]} 22. Kb1 {[%emt 0:2:16]} Ra4 $2 {[%emt 0:3:32] [#]} (22... Re4 {is tougher.} )23. c4 {[%emt 0:2:7]} Qa6 {[%emt 0:5:27]} 24. Nxd5 {[%emt 0:0:5]} f6 {[%emt 0:0:1]} 25. Bc3 {[%emt 0:1:17]} Qxc4 {[%emt 0:1:19]} 26. Nxf6+ {[%emt 0:0:8] White mates.} Bxf6 {[%emt 0:0:3]} 27. Qe8+ {[%emt 0:0:5]} Kg7 {[%emt 0:0:2]} 28. h6# {[%emt 0:0:2] Weighted Error Value: White=0.13 (very precise) /Black=0.89   Mistake:       	White=1     	Black=3      Inaccurate:     	White=1     	Black=4      OK:         	White=3     	Black=1      Best:        	---       	Black=1      Strong:       	White=1     	---} 1-0

[Event "FIDE Candidates 2026"]
[White "Praggnanandhaa R"]
[Black "Esipenko,Andrey"]
[Site "Agios Georgios Pegeia"]
[Round "5.3"]
[Annotator "TA"]
[Result "1/2-1/2"]
[Date "2026.04.03"]
[WhiteElo "2741"]
[BlackElo "2698"]
[PlyCount "61"]
[TimeControl "60"]

{[%evp 10,61,14,0,10,2,0,-4,18,16,14,17,22,18,30,27,38,23,21,20,20,20,31,0,42,35,46,47,42,37,74,14,25,0,15,0,4,22,21,0,21,7,13,0,0,0,0,0,0,0,0,0,0,0]} 1. Nf3 {[%emt 0:0:51]} d5 {[%emt 0:0:26]} 2. e3 {[%emt 0:0:18]} Nf6 {[%emt 0:0:14]} 3. c4 {[%emt 0:0:7]} e6 {[%emt 0:0:6]} 4. b3 {[%emt 0:0:5]} Be7 {[%emt 0:0:8]} 5. Bb2 {[%emt 0:0:45]} O-O {[%emt 0:0:14]} 6. Be2 {[%emt 0:0:37]} c5 {[%emt 0:3:18] A13: English Opening: 1...e6.} 7. cxd5 {[%emt 0:0:23]} Nxd5 {[%emt 0:17:5]} 8. Nc3 {[%emt 0:0:10]} b6 {[%emt 0:9:58]} 9. Nxd5 {[%emt 0:0:30]} exd5 {[%emt 0:0:9]} 10. O-O {[%emt 0:1:41]} Be6 {[%emt 0:0:51]} 11. d4 {[%emt 0:1:7]} Nd7 {[%emt 0:2:44][%cal Bb8d7,Bd7f6,Bf6e4][%mdl 32]} 12. Ba6 $146 {[%emt 0:6:7]} ({Predecessor:} 12. Rc1 Bf6 13. h3 Qe7 14. Qd2 Rfc8 15. Ba6 Rc7 16. Rfe1 Nb8 17. Bd3 a5 18. e4 {1-0 Keymer,V (2667)-Rychagov,A (2549) Titled Tuesday intern op 24th May Late blitz 2022 (10)} )Nf6 {[%emt 0:1:56]} 13. Qe2 {[%emt 0:3:34]} Bd6 {[%emt 0:4:33]} 14. Rac1 {[%emt 0:18:27]} Qe7 {[%emt 0:2:1]} 15. Ne5 {[%emt 0:2:56]} Ne4 {[%emt 0:18:38]} 16. Rfd1 {[%emt 0:9:30]} Rae8 {[%emt 0:14:34]} 17. f3 {[%emt 0:17:30]} Nf6 {[%emt 0:0:19]} 18. Qf2 {[%emt 0:1:33]} Qc7 {[%emt 0:5:17]} 19. Bd3 {[%emt 0:5:53]} Rc8 {[%emt 0:3:50]} 20. f4 {[%emt 0:9:5] White is more active.} (20. Qh4 $16 )Qe7 $11 {[%emt 0:2:26]} 21. Qf3 {[%emt 0:6:1]} Rc7 {[%emt 0:2:33] The position is equal.} 22. Rd2 {[%emt 0:1:12]} Bc8 {[%emt 0:2:5]} 23. Rdc2 {[%emt 0:5:3]} Bb7 {[%emt 0:1:5][%cal Oc5c4]} 24. Qg3 {[%emt 0:0:17]} h6 {[%emt 0:5:7]} 25. h3 {[%emt 0:2:24]} Qe6 {[%emt 0:1:1]} 26. Kh1 {[%emt 0:8:30]} Rfc8 {[%emt 0:1:24]} 27. Kh2 {[%emt 0:1:9]} Re8 {[%emt 0:1:4]} 28. Kh1 {[%emt 0:0:49]} Rec8 {[%emt 0:0:37]} 29. Kh2 {[%emt 0:0:5]} Re8 {[%emt 0:0:27]} 30. Kh1 {[%emt 0:0:23]} Rec8 {[%emt 0:0:18]} 31. Kh2 {[%emt 0:2:47] Weighted Error Value: White=0.10 (very precise) /Black=0.06 (flawless)   Mistake:       	White=1     	---        Inaccurate:     	White=1     	Black=2      OK:         	White=5     	Black=7} 1/2-1/2

[Event "FIDE Candidates 2026"]
[White "Wei,Yi"]
[Black "Sindarov,Javokhir"]
[Site "Agios Georgios Pegeia"]
[Round "6.1"]
[Annotator "TA"]
[Result "0-1"]
[Date "2026.04.04"]
[WhiteElo "2754"]
[BlackElo "2745"]
[PlyCount "72"]
[TimeControl "60"]

{[%evp 9,71,-13,-13,-13,-8,-14,3,-14,7,0,0,0,22,3,3,0,0,3,12,12,27,16,37,24,25,25,23,-45,-22,-41,-33,-43,-42,-30,-30,-70,-87,-62,-40,-91,-75,-91,-92,-96,-90,-117,-57,-76,-76,-59,-73,-248,-250,-306,-297,-421,-370,-1111,-1046,-767,-844,-4814,-4806,-1828]} 1. e4 {[%emt 0:0:6]} e5 {[%emt 0:0:10]} 2. Nc3 {[%emt 0:0:19]} Nc6 {[%emt 0:0:14]} 3. Bc4 {[%emt 0:0:23]} Nf6 {[%emt 0:0:35]} 4. d3 {[%emt 0:0:12]} Na5 {[%emt 0:0:7]} 5. a3 {[%emt 0:0:19]} Nxc4 {[%emt 0:4:7]} 6. dxc4 {[%emt 0:0:31] C28: Vienna Game: 2...Nf6 3 Bc4 Nc6.} Bc5 {[%emt 0:3:1]} 7. Nf3 {[%emt 0:0:21]} d6 {[%emt 0:0:58]} 8. Qd3 {[%emt 0:0:19] The position is equal.} Be6 {[%emt 0:9:31]} 9. Bg5 {[%emt 0:1:18]} a5 $5 $146 {[%emt 0:4:39][%mdl 8] New and interesting.} ({Predecessor:} 9... h6 10. Bxf6 Qxf6 11. b4 Bb6 12. c5 dxc5 13. bxc5 Rd8 14. Qe2 O-O 15. cxb6 cxb6 {1-0 Horackova,M (2355)-Zimmermann,B (2495) ICCF-Cup6/7 sf corr 1990} )10. Nd5 {[%emt 0:2:11]} c6 {[%emt 0:3:59]} 11. Nxf6+ {[%emt 0:0:21]} gxf6 {[%emt 0:0:4]} 12. Bh4 {[%emt 0:0:13]} Rg8 {[%emt 0:1:27]} 13. O-O {[%emt 0:0:43][%cal Ob2b4]} a4 {[%emt 0:2:44]} 14. b4 {[%emt 0:34:48]} axb3 {[%emt 0:10:35]} 15. cxb3 {[%emt 0:0:43][%cal Bc2b3,Bb3b4][%mdl 32]} Bg4 {[%emt 0:2:49][%cal Od8d7]} 16. b4 {[%emt 0:4:22]} Bxf3 {[%emt 0:0:59]} 17. Qxf3 {[%emt 0:0:9]} Bd4 {[%emt 0:0:3]} 18. Bxf6 {[%emt 0:46:34]} (18. Ra2 $11 )Qd7 $15 {[%emt 0:0:48]} 19. Rad1 {[%emt 0:4:13]} Qe6 {[%emt 0:3:49]} 20. h3 {[%emt 0:4:41]} Qxc4 {[%emt 0:2:8]} (20... Rg6 $5 21. Bh4 $8 Qxc4 $15 )21. Rd3 {[%emt 0:2:5]} Qe6 {[%emt 0:6:0]} 22. Rfd1 {[%emt 0:0:8]} Rg6 {[%emt 0:1:33]} 23. Bh4 {[%emt 0:0:2]} Kf8 {[%emt 0:2:6]} 24. Qh5 {[%emt 0:2:42]} (24. Rb1 $15 )Kg8 {[%emt 0:2:20]} 25. Kh1 {[%emt 0:2:15][%cal Of2f4] [#]} c5 $1 {[%emt 0:0:53][%csl Od4] Strong Square Black (d4)} 26. f4 {[%emt 0:2:12]} exf4 {[%emt 0:0:54]} 27. Qf3 {[%emt 0:1:21] [#]} Re8 {[%emt 0:1:51] Black is more active.} ({Black should play} 27... Be5 $1 $17 28. bxc5 dxc5 )28. Bf2 {[%emt 0:0:16]} Bxf2 {[%emt 0:2:6]} 29. Qxf2 {[%emt 0:0:1]} Qxe4 {[%emt 0:0:7]} 30. Rxd6 $2 {[%emt 0:1:3] White does not recover from this.} (30. bxc5 $17 dxc5 31. Rf3 )Rxd6 $19 {[%emt 0:0:59]} 31. Rxd6 $17 {[%emt 0:0:2][%mdl 4096] Endgame KQR-KQR. Black is a pawn up.} Qe3 {[%emt 0:0:10]} 32. Qf3 {[%emt 0:3:29]} (32. Qd2 $142 c4 (32... Qxa3 33. Qxf4 cxb4 34. Qg5+ Kf8 35. Kh2 $11 )33. Rd8 Qxd2 34. Rxd2 )c4 $19 {[%emt 0:1:29] And now ...c3 would win.} 33. Qg4+ $2 {[%emt 0:0:1]} (33. Rd5 c3 34. Rg5+ Kf8 35. Rc5 Qxc5 36. bxc5 Re1+ 37. Kh2 )Kf8 {[%emt 0:0:58] Black is clearly winning.} 34. Rd1 {[%emt 0:0:24]} c3 {[%emt 0:0:53]} 35. Qg5 {[%emt 0:0:13]} f3 {[%emt 0:0:47]} 36. Qxe3 {[%emt 0:0:6]} Rxe3 {[%emt 0:0:3] Weighted Error Value: White=0.58/Black=0.07 (flawless)   Loses game:     	White=1     	---        Mistake:       	White=4     	Black=1      Inaccurate:     	White=1     	---        OK:         	White=4     	Black=3      Best:        	---       	Black=1      Strong:       	---       	Black=1} 0-1